fUSD/lending_fUSD_20250214
["ID","MTS","AMOUNT","RATE_DAILY","PERIOD"]
[353080298,1739544690501,-500.0,0.00014273,2]
[353080299,1739544690509,-2216.64,0.00014273,2]
[353080300,1739544690519,-1486.6,0.00014273,2]
[353080301,1739544690528,-1430.4,0.00014273,2]
[353080302,1739544690537,-500.0,0.00014273,2]
[353080303,1739544690548,-586.49,0.00014273,2]
[353080304,1739544690557,-1536.77,0.00014273,2]
[353080305,1739544690567,-1368.84,0.00014273,2]
[353080306,1739544690576,-1844.89,0.00014273,2]
[353080307,1739544690586,-1068.82,0.00014273,2]
[353080308,1739544690595,-500.0,0.00014273,2]
[353080309,1739544690604,-521.69,0.00014273,2]
[353080310,1739544690613,-500.0,0.00014273,2]
[353080311,1739544690622,-626.82,0.00014273,2]
[353080312,1739544690631,-720.9,0.00014273,2]
[353080313,1739544690640,-1187.63,0.00014273,2]
[353080314,1739544690649,-1264.36,0.00014273,2]
[353080315,1739544690659,-500.0,0.00014273,2]
[353080316,1739544690668,-632.35,0.00014273,2]
[353080317,1739544690678,-576.08,0.00014273,2]
[353080318,1739544690687,-1434.56,0.00014273,2]
[353080319,1739544690697,-2178.99,0.00014273,2]
[353080320,1739544690706,-755.49,0.00014273,2]
[353080321,1739544690715,-1654.89,0.00014273,2]
[353080322,1739544690724,-500.0,0.00014273,2]
[353080323,1739544690734,-500.0,0.00014273,2]
[353080324,1739544690745,-3925.97,0.00014273,2]
[353080325,1739544690755,-586.36,0.00014273,2]
[353080326,1739544690764,-520.35,0.00014273,2]
[353080327,1739544690774,-634.11,0.00014273,2]
[353080328,1739544690783,-561.73,0.00014273,2]
[353080329,1739544690793,-747.95,0.00014273,2]
[353080330,1739544690803,-500.5,0.00014273,2]
[353080331,1739544690812,-500.0,0.00014273,2]
[353080332,1739544690822,-807.32,0.00014273,2]
[353080333,1739544690831,-500.0,0.00014273,2]
[353080334,1739544690841,-831.08,0.00014273,2]
[353080335,1739544690850,-1263.6,0.00014273,2]
[353080336,1739544690860,-535.69,0.00014273,2]
[353080337,1739544690869,-1239.88,0.00014273,2]
[353080338,1739544690878,-1758.42,0.00014273,2]
[353080339,1739544690887,-2699.91,0.00014273,2]
[353080340,1739544690896,-874.13,0.00014273,2]
[353080341,1739544690905,-896.36,0.00014273,2]
[353080342,1739544690914,-1946.46,0.00014273,2]
[353080343,1739544690925,-1993.9,0.00014273,2]
[353080344,1739544690935,-1045.73,0.00014273,2]
[353080345,1739544690944,-2126.26,0.00014273,2]
[353080346,1739544690953,-500.0,0.00014273,2]
[353080347,1739544690963,-1742.35,0.00014273,2]
[353080348,1739544690972,-4110.54,0.00014273,2]
[353080349,1739544690981,-2011.27,0.00014273,2]
[353080350,1739544690990,-500.0,0.00014273,2]
[353080351,1739544690999,-2391.78,0.00014273,2]
[353080352,1739544691009,-500.0,0.00014273,2]
[353080353,1739544691018,-609.61,0.00014273,2]
[353080354,1739544691028,-1831.52,0.00014273,2]
[353080355,1739544691036,-500.0,0.00014273,2]
[353080356,1739544691047,-2646.27,0.00014273,2]
[353080357,1739544691056,-500.0,0.00014273,2]
[353080358,1739544691065,-1174.04,0.00014273,2]
[353080359,1739544691074,-3164.91,0.00014273,2]
[353080360,1739544691083,-884.25,0.00014273,2]
[353080361,1739544691092,-1085.57,0.00014273,2]
[353080362,1739544691105,-500.0,0.00014273,2]
[353080363,1739544691115,-1315.32,0.00014273,2]
[353080364,1739544691123,-1305.11,0.00014273,2]
[353080365,1739544691132,-1534.02,0.00014273,2]
[353080366,1739544691142,-804.3,0.00014273,2]
[353080367,1739544691151,-3065.35,0.00014273,2]
[353080368,1739544691161,-942.83,0.00014273,2]
[353080369,1739544691171,-500.0,0.00014273,2]
[353080370,1739544691184,-2292.76,0.00014273,2]
[353080371,1739544691195,-598.52,0.00014273,2]
[353080372,1739544691204,-1739.66,0.00014273,2]
[353080373,1739544691214,-3051.27,0.00014273,2]
[353080374,1739544691224,-1938.22,0.00014273,2]
[353080375,1739544691233,-1919.75,0.00014273,2]
[353080376,1739544691242,-2644.4,0.00014273,2]
[353080377,1739544691252,-500.0,0.00014273,2]
[353080378,1739544691261,-527.01,0.00014273,2]
[353080379,1739544691272,-500.0,0.00014273,2]
[353080380,1739544691281,-3022.44,0.00014273,2]
[353080381,1739544691301,-500.0,0.00014273,2]
[353080382,1739544691317,-2150.61,0.00014273,2]
[353080383,1739544691335,-1103.11,0.00014273,2]
[353080384,1739544691353,-2670.78,0.00014273,2]
[353080385,1739544691367,-852.03,0.00014273,2]
[353080386,1739544691385,-500.0,0.00014273,2]
[353080387,1739544691405,-534.43,0.00014273,2]
[353080388,1739544691426,-3644.59,0.00014273,2]
[353080389,1739544691444,-1448.15,0.00014273,2]
[353080390,1739544691462,-3104.88,0.00014273,2]
[353080391,1739544691479,-1834.3,0.00014273,2]
[353080392,1739544691493,-500.0,0.00014273,2]
[353080393,1739544691512,-826.96,0.00014273,2]
[353080394,1739544691526,-1560.34,0.00014273,2]
[353080395,1739544691544,-500.0,0.00014273,2]
[353080396,1739544691558,-1308.88,0.00014273,2]
[353080397,1739544691574,-3528.69,0.00014273,2]
[353080398,1739544691590,-1061.33,0.00014273,2]
[353080399,1739544691605,-2015.42,0.00014273,2]
[353080400,1739544691621,-5617.67,0.00014273,2]
[353080401,1739544691636,-756.69,0.00014273,2]
[353080402,1739544691652,-1702.01,0.00014273,2]
[353080403,1739544691667,-500.0,0.00014273,2]
[353080404,1739544691683,-500.0,0.00014273,2]
[353080405,1739544691699,-701.91,0.00014273,2]
[353080406,1739544691714,-3158.22,0.00014273,2]
[353080407,1739544691729,-1786.48,0.00014273,2]
[353080408,1739544691745,-3903.71,0.00014273,2]
[353080409,1739544691761,-848.31,0.00014273,2]
[353080410,1739544691777,-1832.52,0.00014273,2]
[353080411,1739544691792,-3315.95,0.00014273,2]
[353080412,1739544691808,-2725.27,0.00014273,2]
[353080413,1739544691825,-169.64509667,0.00014273,2]
[353080414,1739544691840,-2031.81,0.00014273,2]
[353080415,1739544691855,-4599.98,0.00014273,2]
[353080416,1739544691872,-500.0,0.00014273,2]
[353080417,1739544691887,-703.01,0.00014273,2]
[353080418,1739544691903,-1874.26,0.00014273,2]
[353080419,1739544691918,-3262.91,0.00014273,2]
[353080420,1739544691933,-2314.45,0.00014273,2]
[353080421,1739544691947,-1772.25,0.00014273,2]
[353080422,1739544691963,-603.08,0.00014273,2]
[353080423,1739544691979,-9777.12,0.00014273,2]
[353080424,1739544691995,-500.0,0.00014273,2]
[353080425,1739544692011,-2126.44,0.00014273,2]
[353080426,1739544692026,-500.0,0.00014273,2]
[353080427,1739544692041,-5018.81,0.00014273,2]
[353080428,1739544692056,-742.14,0.00014273,2]
[353080429,1739544692070,-500.0,0.00014273,2]
[353080430,1739544692084,-1707.91,0.00014273,2]
[353080431,1739544692101,-4887.29,0.00014273,2]
[353080432,1739544692115,-1348.91,0.00014273,2]
[353080433,1739544692131,-2091.28,0.00014273,2]
[353080434,1739544692146,-3940.98,0.00014273,2]
[353080435,1739544692160,-806.99,0.00014273,2]
[353080436,1739544692175,-2219.75,0.00014273,2]
[353080437,1739544692190,-9856.61,0.00014273,2]
[353080438,1739544692205,-3791.9,0.00014273,2]
[353080439,1739544692220,-1688.79,0.00014273,2]
[353080440,1739544692235,-1160.16,0.00014273,2]
[353080441,1739544692249,-1010.37,0.00014273,2]
[353080442,1739544692263,-2871.72,0.00014273,2]
[353080443,1739544692278,-555.99,0.00014273,2]
[353080444,1739544692294,-500.0,0.00014273,2]
[353080445,1739544692312,-3497.49,0.00014273,2]
[353080446,1739544692327,-3867.62,0.00014273,2]
[353080447,1739544692343,-4324.25,0.00014273,2]
[353080448,1739544692356,-500.0,0.00014273,2]
[353080449,1739544692371,-500.0,0.00014273,2]
[353080450,1739544692386,-503.82,0.00014273,2]
[353080451,1739544692401,-500.0,0.00014273,2]
[353080452,1739544692416,-500.0,0.00014273,2]
[353080453,1739544692432,-1311.88,0.00014273,2]
[353080454,1739544692447,-635.55,0.00014273,2]
[353080455,1739544692462,-3120.27,0.00014273,2]
[353080456,1739544692478,-3050.97,0.00014273,2]
[353080457,1739544692495,-2478.28,0.00014273,2]
[353080458,1739544692510,-3878.71,0.00014273,2]
[353080459,1739544692524,-2905.87,0.00014273,2]
[353080460,1739544692543,-3113.23,0.00014273,2]
[353080461,1739544692557,-9308.41,0.00014273,2]
[353080462,1739544692572,-2064.17,0.00014273,2]
[353080463,1739544692588,-1168.26,0.00014273,2]
[353080464,1739544692603,-974.13,0.00014273,2]
[353080465,1739544692618,-500.0,0.00014273,2]
[353080466,1739544692634,-2987.68,0.00014273,2]
[353080467,1739544692648,-599.03,0.00014273,2]
[353080468,1739544692663,-2495.74,0.00014273,2]
[353080469,1739544692679,-500.0,0.00014273,2]
[353080470,1739544692695,-3753.97,0.00014273,2]
[353080471,1739544692710,-661.86,0.00014273,2]
[353080472,1739544692725,-500.0,0.00014273,2]
[353080473,1739544692740,-2852.23,0.00014273,2]
[353080474,1739544692756,-2282.79,0.00014273,2]
[353080475,1739544692772,-659.95,0.00014273,2]
[353080476,1739544692787,-500.0,0.00014273,2]
[353080477,1739544692803,-2097.8,0.00014273,2]
[353080478,1739544692819,-657.14,0.00014273,2]
[353080479,1739544692834,-1146.32,0.00014273,2]
[353080480,1739544692848,-5107.22,0.00014273,2]
[353080481,1739544692863,-877.64,0.00014273,2]
[353080482,1739544692878,-4773.03,0.00014273,2]
[353080483,1739544692894,-3084.9,0.00014273,2]
[353080484,1739544693128,-500.0,0.00014273,2]
[353080485,1739544693146,-829.21,0.00014273,2]
[353080486,1739544693156,-500.0,0.00014273,2]
[353080487,1739544693166,-4382.38,0.00014273,2]
[353080488,1739544693176,-500.0,0.00014273,2]
[353080489,1739544693188,-500.0,0.00014273,2]
[353080490,1739544693198,-500.0,0.00014273,2]
[353080491,1739544693209,-3816.98,0.00014273,2]
[353080492,1739544693219,-1329.9,0.00014273,2]
[353080493,1739544693229,-500.0,0.00014273,2]
[353080494,1739544693239,-779.2,0.00014273,2]
[353080495,1739544693250,-3531.24,0.00014273,2]
[353080496,1739544693260,-3267.0,0.00014273,2]
[353080497,1739544693271,-1017.37,0.00014273,2]
[353080498,1739544693281,-1241.61,0.00014273,2]
[353080499,1739544693294,-500.0,0.00014273,2]
[353080500,1739544693304,-500.0,0.00014273,2]
[353080501,1739544693315,-681.69,0.00014273,2]
[353080502,1739544693325,-500.0,0.00014273,2]
[353080503,1739544693335,-1317.51,0.00014273,2]
[353080504,1739544693345,-617.61,0.00014273,2]
[353080505,1739544693355,-542.26,0.00014273,2]
[353080506,1739544693364,-3593.84,0.00014273,2]
[353080507,1739544693374,-500.0,0.00014273,2]
[353080508,1739544693383,-4983.75,0.00014273,2]
[353080509,1739544693393,-3036.12,0.00014273,2]
[353080510,1739544693403,-542.86,0.00014273,2]
[353080511,1739544693412,-2461.67,0.00014273,2]
[353080512,1739544693422,-520.9,0.00014273,2]
[353080513,1739544693431,-500.0,0.00014273,2]
[353080514,1739544693441,-3383.44,0.00014273,2]
[353080515,1739544693450,-662.81,0.00014273,2]
[353080516,1739544693459,-1911.36,0.00014273,2]
[353080517,1739544693468,-3689.77,0.00014273,2]
[353080518,1739544693477,-2009.32,0.00014273,2]
[353080519,1739544693487,-970.34,0.00014273,2]
[353080520,1739544693497,-5827.67,0.00014273,2]
[353080521,1739544693507,-500.0,0.00014273,2]
[353080522,1739544693516,-3320.84,0.00014273,2]
[353080523,1739544693526,-4696.51,0.00014273,2]
[353080524,1739544693536,-2598.35,0.00014273,2]
[353080525,1739544693545,-500.0,0.00014273,2]
[353080526,1739544693555,-500.0,0.00014273,2]
[353080527,1739544693565,-500.0,0.00014273,2]
[353080528,1739544693575,-2259.73,0.00014273,2]
[353080529,1739544693585,-345.80651472,0.00014273,2]
[353080530,1739544693594,-4477.39,0.00014273,2]
[353080531,1739544693604,-1589.29,0.00014273,2]
[353080532,1739544693613,-1657.4,0.00014273,2]
[353080533,1739544693623,-2233.64,0.00014273,2]
[353080534,1739544693633,-575.81495001,0.00014273,2]
[353080535,1739544693643,-1417.16,0.00014273,2]
[353080536,1739544693653,-653.7,0.00014273,2]
[353080537,1739544693663,-896.69,0.00014273,2]
[353080538,1739544693673,-3209.23,0.00014273,2]
[353080539,1739544693682,-1823.66,0.00014273,2]
[353080540,1739544693691,-517.09,0.00014273,2]
[353080541,1739544693700,-2492.01,0.00014273,2]
[353080542,1739544693710,-1632.35,0.00014273,2]
[353080543,1739544693720,-223.22778888,0.00014273,2]
[353080544,1739544693730,-2703.17,0.00014273,2]
[353080545,1739544693740,-500.0,0.00014273,2]
[353080546,1739544693751,-1185.65,0.00014273,2]
[353080547,1739544693761,-500.0,0.00014273,2]
[353080548,1739544693771,-500.0,0.00014273,2]
[353080549,1739544693782,-500.0,0.00014273,2]
[353080550,1739544693793,-4133.86,0.00014273,2]
[353080551,1739544693803,-500.0,0.00014273,2]
[353080552,1739544693814,-500.0,0.00014273,2]
[353080553,1739544693824,-3609.04,0.00014273,2]
[353080554,1739544693834,-500.0,0.00014273,2]
[353080555,1739544693844,-3754.44,0.00014273,2]
[353080556,1739544693854,-2296.67,0.00014273,2]
[353080557,1739544693863,-3027.31,0.00014273,2]
[353080558,1739544693873,-850.36,0.00014273,2]
[353080559,1739544693883,-1599.65,0.00014273,2]
[353080560,1739544693892,-4105.41,0.00014273,2]
[353080561,1739544693902,-742.16,0.00014273,2]
[353080562,1739544693912,-3914.44,0.00014273,2]
[353080563,1739544693921,-566.89,0.00014273,2]
[353080564,1739544693931,-500.0,0.00014273,2]
[353080565,1739544693941,-1563.0,0.00014273,2]
[353080566,1739544693951,-500.0,0.00014301,2]
[353080567,1739544693960,-1563.0,0.00014301,2]
[353080568,1739544693969,-500.0,0.00014328,2]
[353080569,1739544693979,-1563.0,0.00014328,2]
[353080570,1739544693988,-168.55,0.00014346,2]
[353080571,1739544693998,-341.79600875,0.00014352,2]
[353080572,1739544694007,-30245.0,0.00014353,2]
[353080573,1739544694016,-500.0,0.00014356,2]
[353080574,1739544694026,-1563.0,0.00014356,2]
[353080575,1739544694035,-1911.281941,0.00014356,2]
[353080576,1739544694045,-1337.301732,0.00014356,2]
[353080577,1739544694055,-659.14,0.00014356,2]
[353080578,1739544694064,-709.35,0.00014356,2]
[353080579,1739544694073,-631.86,0.00014356,2]
[353080580,1739544694084,-500.0,0.00014356,2]
[353080581,1739544694094,-500.0,0.00014356,2]
[353080582,1739544694107,-718.88,0.00014356,2]
[353080583,1739544694117,-500.0,0.00014356,2]
[353080584,1739544694126,-594.18,0.00014356,2]
[353080585,1739544694136,-500.0,0.00014356,2]
[353080586,1739544694146,-621.55,0.00014356,2]
[353080587,1739544694156,-500.0,0.00014356,2]
[353080588,1739544694165,-500.0,0.00014356,2]
[353080589,1739544694175,-203.54156306,0.00014356,2]
[353080590,1739544694186,-742.42,0.00014356,2]
[353080591,1739544694195,-814.3,0.00014356,2]
[353080592,1739544694205,-500.0,0.00014356,2]
[353080593,1739544694215,-500.0,0.00014356,2]
[353080594,1739544694224,-539.6,0.00014356,2]
[353080595,1739544694234,-667.62,0.00014356,2]
[353080596,1739544694244,-500.0,0.00014356,2]
[353080597,1739544694253,-500.0,0.00014356,2]
[353080598,1739544694263,-500.0,0.00014356,2]
[353080599,1739544694272,-524.12,0.00014356,2]
[353080600,1739544694282,-503.78,0.00014356,2]
[353080601,1739544694293,-760.17,0.00014356,2]
[353080602,1739544694303,-1130.54,0.00014356,2]
[353080603,1739544694313,-901.3,0.00014356,2]
[353080604,1739544694322,-500.0,0.00014356,2]
[353080605,1739544694332,-500.0,0.00014356,2]
[353080606,1739544694342,-274.88448693,0.00014356,2]
[353080607,1739544694350,-607.24,0.00014356,2]
[353080608,1739544694360,-609.68,0.00014356,2]
[353080609,1739544694369,-673.47,0.00014356,2]
[353080610,1739544694379,-500.0,0.00014356,2]
[353080611,1739544694389,-500.0,0.00014356,2]
[353080612,1739544694398,-619.31,0.00014356,2]
[353080613,1739544694409,-500.0,0.00014356,2]
[353080614,1739544694418,-500.0,0.00014356,2]
[353080615,1739544694428,-717.98,0.00014356,2]
[353080616,1739544694437,-920.52,0.00014356,2]
[353080617,1739544694447,-1053.05,0.00014356,2]
[353080618,1739544694457,-579.27,0.00014356,2]
[353080619,1739544694467,-655.19,0.00014356,2]
[353080620,1739544694476,-551.39,0.00014356,2]
[353080621,1739544694486,-500.0,0.00014356,2]
[353080622,1739544694495,-916.51,0.00014356,2]
[353080623,1739544694505,-500.0,0.00014356,2]
[353080624,1739544694515,-690.09,0.00014356,2]
[353080625,1739544694524,-850.89,0.00014356,2]
[353080626,1739544694534,-500.0,0.00014356,2]
[353080627,1739544694547,-622.05,0.00014356,2]
[353080628,1739544694557,-500.0,0.00014356,2]
[353080629,1739544694567,-845.24,0.00014356,2]
[353080630,1739544694576,-2399.9,0.00014356,2]
[353080631,1739544694586,-500.0,0.00014356,2]
[353080632,1739544694596,-882.97,0.00014356,2]
[353080633,1739544694606,-500.0,0.00014356,2]
[353080634,1739544694615,-500.0,0.00014356,2]
[353080635,1739544694625,-500.0,0.00014356,2]
[353080636,1739544694634,-500.0,0.00014356,2]
[353080637,1739544694644,-500.0,0.00014356,2]
[353080638,1739544694653,-1071.14,0.00014356,2]
[353080639,1739544694663,-500.0,0.00014356,2]
[353080640,1739544694672,-520.64,0.00014356,2]
[353080641,1739544694681,-500.0,0.00014356,2]
[353080642,1739544694691,-569.33,0.00014356,2]
[353080643,1739544694700,-500.0,0.00014356,2]
[353080644,1739544694709,-500.0,0.00014356,2]
[353080645,1739544694718,-1565.53,0.00014356,2]
[353080646,1739544694727,-1214.8,0.00014356,2]
[353080647,1739544694736,-608.54,0.00014356,2]
[353080648,1739544694746,-1087.72,0.00014356,2]
[353080649,1739544694755,-870.49,0.00014356,2]
[353080650,1739544694764,-858.99,0.00014356,2]
[353080651,1739544694774,-500.0,0.00014356,2]
[353080652,1739544694784,-843.1,0.00014356,2]
[353080653,1739544694794,-1573.74,0.00014356,2]
[353080654,1739544694804,-1220.82,0.00014356,2]
[353080655,1739544694814,-1854.13,0.00014356,2]
[353080656,1739544694823,-651.62,0.00014356,2]
[353080657,1739544694833,-500.0,0.00014356,2]
[353080658,1739544694842,-1294.49,0.00014356,2]
[353080659,1739544694852,-500.0,0.00014356,2]
[353080660,1739544694861,-975.09,0.00014356,2]
[353080661,1739544694871,-601.37,0.00014356,2]
[353080662,1739544694880,-500.0,0.00014356,2]
[353080663,1739544694890,-802.24,0.00014356,2]
[353080664,1739544694899,-1276.04,0.00014356,2]
[353080665,1739544694909,-855.93,0.00014356,2]
[353080666,1739544694918,-953.5,0.00014356,2]
[353080667,1739544694928,-1669.73,0.00014356,2]
[353080668,1739544694937,-500.0,0.00014356,2]
[353080669,1739544694947,-500.0,0.00014356,2]
[353080670,1739544694956,-738.15,0.00014356,2]
[353080671,1739544694965,-1316.02,0.00014356,2]
[353080672,1739544694974,-500.0,0.00014356,2]
[353080673,1739544694984,-799.32,0.00014356,2]
[353080674,1739544694994,-1136.8,0.00014356,2]
[353080675,1739544695003,-826.16,0.00014356,2]
[353080676,1739544695013,-511.86,0.00014356,2]
[353080677,1739544695023,-1440.13,0.00014356,2]
[353080678,1739544695034,-737.56,0.00014356,2]
[353080679,1739544695047,-510.22,0.00014356,2]
[353080680,1739544695056,-498.08751416,0.00014356,2]
[353080681,1739544695067,-500.0,0.00014356,2]
[353080682,1739544695076,-864.12,0.00014356,2]
[353080683,1739544695086,-500.0,0.00014356,2]
[353080684,1739544695096,-931.04,0.00014356,2]
[353080685,1739544695109,-500.0,0.00014356,2]
[353080686,1739544695118,-500.0,0.00014356,2]
[353080687,1739544695128,-1342.89,0.00014356,2]
[353080688,1739544695137,-1262.7,0.00014356,2]
[353080689,1739544695148,-871.99,0.00014356,2]
[353080690,1739544695157,-701.41,0.00014356,2]
[353080691,1739544695167,-917.64,0.00014356,2]
[353080692,1739544695176,-598.31,0.00014356,2]
[353080693,1739544695187,-1594.36,0.00014356,2]
[353080694,1739544695196,-500.0,0.00014356,2]
[353080695,1739544695206,-727.18,0.00014356,2]
[353080696,1739544695216,-500.0,0.00014356,2]
[353080697,1739544695226,-1209.19,0.00014356,2]
[353080698,1739544695235,-708.13,0.00014356,2]
[353080699,1739544695244,-934.97,0.00014356,2]
[353080700,1739544695254,-1581.39,0.00014356,2]
[353080701,1739544695263,-779.87,0.00014356,2]
[353080702,1739544695272,-500.0,0.00014356,2]
[353080703,1739544695282,-744.99,0.00014356,2]
[353080704,1739544695294,-726.26,0.00014356,2]
[353080705,1739544695303,-635.98,0.00014356,2]
[353080706,1739544695312,-978.44,0.00014356,2]
[353080707,1739544695322,-1450.61,0.00014356,2]
[353080708,1739544695331,-500.0,0.00014356,2]
[353080709,1739544695341,-500.0,0.00014356,2]
[353080710,1739544695350,-1548.4,0.00014356,2]
[353080711,1739544695359,-1486.59,0.00014356,2]
[353080712,1739544695367,-802.99,0.00014356,2]
[353080713,1739544695376,-1107.32,0.00014356,2]
[353080714,1739544695385,-936.07,0.00014356,2]
[353080715,1739544695394,-2614.45,0.00014356,2]
[353080716,1739544695403,-710.72,0.00014356,2]
[353080717,1739544695412,-1150.16,0.00014356,2]
[353080718,1739544695422,-592.98,0.00014356,2]
[353080719,1739544695431,-687.93,0.00014356,2]
[353080720,1739544695440,-1155.9,0.00014356,2]
[353080721,1739544695449,-1976.19,0.00014356,2]
[353080722,1739544695458,-500.0,0.00014356,2]
[353080723,1739544695467,-1070.16,0.00014356,2]
[353080724,1739544695476,-500.0,0.00014356,2]
[353080725,1739544695485,-742.09,0.00014356,2]
[353080726,1739544695495,-371.9176709,0.00014356,2]
[353080727,1739544695504,-1623.3,0.00014356,2]
[353080728,1739544695513,-997.85,0.00014356,2]
[353080729,1739544695523,-727.42,0.00014356,2]
[353080730,1739544695532,-1903.26,0.00014356,2]
[353080731,1739544695542,-956.17,0.00014356,2]
[353080732,1739544695552,-1098.4,0.00014356,2]
[353080733,1739544695561,-513.32,0.00014356,2]
[353080734,1739544695570,-1764.08,0.00014356,2]
[353080735,1739544695579,-2104.25,0.00014356,2]
[353080736,1739544695589,-2002.33,0.00014356,2]
[353080737,1739544695598,-500.0,0.00014356,2]
[353080738,1739544695607,-841.37,0.00014356,2]
[353080739,1739544695616,-964.11,0.00014356,2]
[353080740,1739544695626,-1048.68,0.00014356,2]
[353080741,1739544695635,-768.42,0.00014356,2]
[353080742,1739544695644,-553.63,0.00014356,2]
[353080743,1739544695654,-717.39,0.00014356,2]
[353080744,1739544695663,-500.0,0.00014356,2]
[353080745,1739544695672,-2216.64,0.00014356,2]
[353080746,1739544695682,-1486.6,0.00014356,2]
[353080747,1739544695691,-1430.4,0.00014356,2]
[353080748,1739544695700,-500.0,0.00014356,2]
[353080749,1739544695710,-586.49,0.00014356,2]
[353080750,1739544695720,-1536.77,0.00014356,2]
[353080751,1739544695729,-1368.84,0.00014356,2]
[353080752,1739544695740,-1844.89,0.00014356,2]
[353080753,1739544695749,-1068.82,0.00014356,2]
[353080754,1739544695759,-500.0,0.00014356,2]
[353080755,1739544695768,-521.69,0.00014356,2]
[353080756,1739544695778,-500.0,0.00014356,2]
[353080757,1739544695787,-626.82,0.00014356,2]
[353080758,1739544695801,-720.9,0.00014356,2]
[353080759,1739544695811,-1187.63,0.00014356,2]
[353080760,1739544695821,-1264.36,0.00014356,2]
[353080761,1739544695831,-500.0,0.00014356,2]
[353080762,1739544695840,-632.35,0.00014356,2]
[353080763,1739544695850,-576.08,0.00014356,2]
[353080764,1739544695860,-2178.99,0.00014356,2]
[353080765,1739544695870,-1434.56,0.00014356,2]
[353080766,1739544695879,-755.49,0.00014356,2]
[353080767,1739544695889,-1654.89,0.00014356,2]
[353080768,1739544695898,-500.0,0.00014356,2]
[353080769,1739544695908,-166.41337928,0.00014356,2]
[353080770,1739544695918,-586.36,0.00014356,2]
[353080771,1739544695928,-3925.97,0.00014356,2]
[353080772,1739544695938,-520.35,0.00014356,2]
[353080773,1739544695947,-634.11,0.00014356,2]
[353080774,1739544695957,-561.73,0.00014356,2]
[353080775,1739544695966,-747.95,0.00014356,2]
[353080776,1739544695976,-500.5,0.00014356,2]
[353080777,1739544695985,-500.0,0.00014356,2]
[353080778,1739544695995,-807.32,0.00014356,2]
[353080779,1739544696004,-500.0,0.00014356,2]
[353080780,1739544696014,-831.08,0.00014356,2]
[353080781,1739544696023,-1263.6,0.00014356,2]
[353080782,1739544696033,-535.69,0.00014356,2]
[353080783,1739544696043,-1239.88,0.00014356,2]
[353080784,1739544696052,-1758.42,0.00014356,2]
[353080785,1739544696062,-2699.91,0.00014356,2]
[353080786,1739544696071,-874.13,0.00014356,2]
[353080787,1739544696081,-896.36,0.00014356,2]
[353080788,1739544696247,-1946.46,0.00014356,2]
[353080789,1739544696258,-1993.9,0.00014356,2]
[353080790,1739544696268,-1045.73,0.00014356,2]
[353080791,1739544696278,-2126.26,0.00014356,2]
[353080792,1739544696287,-500.0,0.00014356,2]
[353080793,1739544696299,-1742.35,0.00014356,2]
[353080794,1739544696308,-4110.54,0.00014356,2]
[353080795,1739544696317,-2011.27,0.00014356,2]
[353080796,1739544696327,-2391.78,0.00014356,2]
[353080797,1739544696336,-500.0,0.00014356,2]